Workbook

Sheet Input_Sheet
B1: Stem Analysis
B2: Instructions: 1. First reset the sheet using the button Reset Sheet 2. Enter the number of groups in the cell highlighted below 3. Enter the macro level data by pressing the button Enter Initial Data 3. Prepare the sheet by using the button Prepare Sheet 4. Enter the data and press the button Process all data, generate graphs & export to PDF *Please enter values only in cells that are highlighted in GREY
B4: No. of groups in the class

Sheet Height_Age
B4: No. of groups in the class | E4: =Input_Sheet!E4 -> 0
B5: Age at Breast Height (From Seedling Data) | E5: 9.521218879
B6: Longest Tree | E6: =MAX(Input_Sheet!#REF!) -> 
B7: Maximum No. of Sections | E7: 9
B9: Group No. | C9: Height of Section (in mts) | M9: Height v/s Age Graph
C10: 1.37 | D10: 4.24 | E10: =D10+3 -> 7.24 | F10: 10.24 | G10: 13.24 | H10: 16.24 | I10: 19.24 | J10: 22.24
C11: Age | D11: Age | E11: Age | F11: Age | G11: Age | H11: Age | I11: Age | J11: Age
B12: 1 | C12: 0 | D12: 5 | E12: 8 | F12: 12 | G12: 18 | H12: 25 | I12: 32 | J12: 38
B13: 2 | C13: 0 | D13: 5 | E13: 8 | F13: 12 | G13: 18 | H13: 25 | I13: 32 | J13: 38
B14: 3 | C14: 0 | D14: 5 | E14: 8 | F14: 12 | G14: 18 | H14: 25 | I14: 32 | J14: 38
B15: 4 | C15: 0 | D15: 5 | E15: 8 | F15: 12 | G15: 18 | H15: 25 | I15: 32 | J15: 38
B16: 5 | C16: 0 | D16: 5 | E16: 8 | F16: 12 | G16: 18 | H16: 25 | I16: 32 | J16: 38
B17: 6 | C17: 0 | D17: 5 | E17: 8 | F17: 12 | G17: 18 | H17: 25 | I17: 32 | J17: 38
B18: 7 | C18: 0 | D18: 5 | E18: 8 | F18: 12 | G18: 18 | H18: 25 | I18: 32 | J18: 38
B19: 8 | C19: 0 | D19: 5 | E19: 8 | F19: 12 | G19: 18 | H19: 25 | I19: 32 | J19: 38
B20: Total | C20: =SUM(C12:C19) -> 0 | D20: 40 | E20: 64 | F20: 96 | G20: 144 | H20: 200 | I20: 256 | J20: 304
B21: No. of Trees | C21: 8 | D21: 8 | E21: 8 | F21: 8 | G21: 8 | H21: 8 | I21: 8 | J21: 8
B22: Average Age | C22: =C20/C21 -> 0 | D22: 5 | E22: 8 | F22: 12 | G22: 18 | H22: 25 | I22: 32 | J22: 38
B23: Corrected Age | C23: =C22+E7 -> 9 | D23: =D22+E7 -> 14 | E23: =E22+E7 -> 17 | F23: =F22+E7 -> 21 | G23: =G22+E7 -> 27 | H23: =H22+E7 -> 34 | I23: =I22+E7 -> 41 | J23: =J22+E7 -> 47

Sheet DUB_Height
B4: No. of groups in the class | E4: =Height_Age!E4 -> 0
B5: Age at Breast Height (From Seedling Data) | E5: =Height_Age!E5 -> 9.521218879
B6: Longest Tree | E6: =Height_Age!E6 -> 
B7: Maximum No. of Sections | E7: =Height_Age!E7 -> 9
B10: Mean Diameter Computation For Decade - 1
B11: Group No. | C11: Height of Section (in mts)
C12: 1.37 | D12: 4.24 | E12: =D12+3 -> 7.24 | F12: 10.24 | G12: 13.24 | H12: 16.24 | I12: 19.24 | J12: 22.24
C13: Dia | D13: Dia | E13: Dia | F13: Dia | G13: Dia | H13: Dia | I13: Dia | J13: Dia
B14: 1 | C14: 7 | D14: 5.8 | E14: 4.2 | F14: 3
B15: 2 | C15: 7 | D15: 5.8 | E15: 4.2 | F15: 3
B16: 3 | C16: 7 | D16: 5.8 | E16: 4.2 | F16: 3
B17: 4 | C17: 7 | D17: 5.8 | E17: 4.2 | F17: 3
B18: 5 | C18: 7 | D18: 5.8 | E18: 4.2 | F18: 3
B19: 6 | C19: 7 | D19: 5.8 | E19: 4.2 | F19: 3
B20: 7 | C20: 7 | D20: 5.8 | E20: 4.2 | F20: 3
B21: 8 | C21: 7 | D21: 5.8 | E21: 4.2 | F21: 3
B22: Total | C22: =SUM(C14:C21) -> 56 | D22: 46.4 | E22: 33.6 | F22: 24 | G22: 0 | H22: 0 | I22: 0 | J22: 0
B23: No. of Trees | C23: 8 | D23: 8 | E23: 8 | F23: 8 | G23: 0 | H23: 0 | I23: 0 | J23: 0
B24: Average Dia | C24: =C22/C23 -> 7 | D24: =D22/D23 -> 5.8 | E24: =E22/E23 -> 4.2 | F24: =F22/F23 -> 3
B27: Mean Diameter Computation For Decade - 2
B28: Group No. | C28: Height of Section (in mts)
C29: 1.37 | D29: 4.24 | E29: =D29+3 -> 7.24 | F29: 10.24 | G29: 13.24 | H29: 16.24 | I29: 19.24 | J29: 22.24
C30: Dia | D30: Dia | E30: Dia | F30: Dia | G30: Dia | H30: Dia | I30: Dia | J30: Dia
B31: 1 | C31: 13 | D31: 11.2 | E31: 9.2 | F31: 7 | G31: 4.2
B32: 2 | C32: 13 | D32: 11.2 | E32: 9.2 | F32: 7 | G32: 4.2
B33: 3 | C33: 13 | D33: 11.2 | E33: 9.2 | F33: 7 | G33: 4.2
B34: 4 | C34: 13 | D34: 11.2 | E34: 9.2 | F34: 7 | G34: 4.2
B35: 5 | C35: 13 | D35: 11.2 | E35: 9.2 | F35: 7 | G35: 4.2
B36: 6 | C36: 13 | D36: 11.2 | E36: 9.2 | F36: 7 | G36: 4.2
B37: 7 | C37: 13 | D37: 11.2 | E37: 9.2 | F37: 7 | G37: 4.2
B38: 8 | C38: 13 | D38: 11.2 | E38: 9.2 | F38: 7 | G38: 4.2
B39: Total | C39: =SUM(C31:C38) -> 104 | D39: 89.6 | E39: 73.6 | F39: 56 | G39: 33.6 | H39: 0 | I39: 0 | J39: 0
B40: No. of Trees | C40: 8 | D40: 8 | E40: 8 | F40: 8 | G40: 8 | H40: 0 | I40: 0 | J40: 0
B41: Average Dia | C41: =C39/C40 -> 13 | D41: =D39/D40 -> 11.2 | E41: =E39/E40 -> 9.2 | F41: =F39/F40 -> 7 | G41: =G39/G40 -> 4.2
B44: Mean Diameter Computation For Decade - 3
B45: Group No. | C45: Height of Section (in mts)
C46: 1.37 | D46: 4.24 | E46: =D46+3 -> 7.24 | F46: 10.24 | G46: 13.24 | H46: 16.24 | I46: 19.24 | J46: 22.24
C47: Dia | D47: Dia | E47: Dia | F47: Dia | G47: Dia | H47: Dia | I47: Dia | J47: Dia
B48: 1 | C48: 17.4 | D48: 15 | E48: 12.6 | F48: 10.6 | G48: 7.6 | H48: 5.6 | I48: 3.8
B49: 2 | C49: 17.4 | D49: 15 | E49: 12.6 | F49: 10.6 | G49: 7.6 | H49: 5.6 | I49: 3.8
B50: 3 | C50: 17.4 | D50: 15 | E50: 12.6 | F50: 10.6 | G50: 7.6 | H50: 5.6 | I50: 3.8
B51: 4 | C51: 17.4 | D51: 15 | E51: 12.6 | F51: 10.6 | G51: 7.6 | H51: 5.6 | I51: 3.8
B52: 5 | C52: 17.4 | D52: 15 | E52: 12.6 | F52: 10.6 | G52: 7.6 | H52: 5.6 | I52: 3.8
B53: 6 | C53: 17.4 | D53: 15 | E53: 12.6 | F53: 10.6 | G53: 7.6 | H53: 5.6 | I53: 3.8
B54: 7 | C54: 17.4 | D54: 15 | E54: 12.6 | F54: 10.6 | G54: 7.6 | H54: 5.6 | I54: 3.8
B55: 8 | C55: 17.4 | D55: 15 | E55: 12.6 | F55: 10.6 | G55: 7.6 | H55: 5.6 | I55: 3.8
B56: Total | C56: =SUM(C48:C55) -> 139.2 | D56: 120 | E56: 100.8 | F56: 84.8 | G56: 60.8 | H56: 44.8 | I56: 30.4 | J56: 0
B57: No. of Trees | C57: 8 | D57: 8 | E57: 8 | F57: 8 | G57: 8 | H57: 8 | I57: 8 | J57: 0
B58: Average Dia | C58: =C56/C57 -> 17.4 | D58: 15 | E58: 12.6 | F58: 10.6 | G58: 7.6 | H58: 5.6 | I58: 3.8
B61: Mean Diameter Computation For Decade - 4
B62: Group No. | C62: Height of Section (in mts)
C63: 1.37 | D63: 4.24 | E63: =D63+3 -> 7.24 | F63: 10.24 | G63: 13.24 | H63: 16.24 | I63: 19.24 | J63: 22.24
C64: Dia | D64: Dia | E64: Dia | F64: Dia | G64: Dia | H64: Dia | I64: Dia | J64: Dia
B65: 1 | C65: 20.4 | D65: 17.8 | E65: 15.4 | F65: 13.4 | G65: 11.6 | H65: 8.6 | I65: 6.2 | J65: 3.2
B66: 2 | C66: 20.4 | D66: 17.8 | E66: 15.4 | F66: 13.4 | G66: 11.6 | H66: 8.6 | I66: 6.2 | J66: 3.2
B67: 3 | C67: 20.4 | D67: 17.8 | E67: 15.4 | F67: 13.4 | G67: 11.6 | H67: 8.6 | I67: 6.2 | J67: 3.2
B68: 4 | C68: 20.4 | D68: 17.8 | E68: 15.4 | F68: 13.4 | G68: 11.6 | H68: 8.6 | I68: 6.2 | J68: 3.2
B69: 5 | C69: 20.4 | D69: 17.8 | E69: 15.4 | F69: 13.4 | G69: 11.6 | H69: 8.6 | I69: 6.2 | J69: 3.2
B70: 6 | C70: 20.4 | D70: 17.8 | E70: 15.4 | F70: 13.4 | G70: 11.6 | H70: 8.6 | I70: 6.2 | J70: 3.2
B71: 7 | C71: 20.4 | D71: 17.8 | E71: 15.4 | F71: 13.4 | G71: 11.6 | H71: 8.6 | I71: 6.2 | J71: 3.2
B72: 8 | C72: 20.4 | D72: 17.8 | E72: 15.4 | F72: 13.4 | G72: 11.6 | H72: 8.6 | I72: 6.2 | J72: 3.2
B73: Total | C73: =SUM(C65:C72) -> 163.2 | D73: 142.4 | E73: 123.2 | F73: 107.2 | G73: 92.8 | H73: 68.8 | I73: 49.6 | J73: 25.6
B74: No. of Trees | C74: 8 | D74: 8 | E74: 8 | F74: 8 | G74: 8 | H74: 8 | I74: 8 | J74: 8
B75: Average Dia | C75: =C73/C74 -> 20.4 | D75: 17.8 | E75: 15.4 | F75: 13.4 | G75: 11.6 | H75: 8.6 | I75: 6.2 | J75: 3.2
B78: Mean Diameter Computation For Decade - 5
B79: Group No. | C79: Height of Section (in mts)
C80: 1.37 | D80: 4.24 | E80: =D80+3 -> 7.24 | F80: 10.24 | G80: 13.24 | H80: 16.24 | I80: 19.24 | J80: 22.24
C81: Dia | D81: Dia | E81: Dia | F81: Dia | G81: Dia | H81: Dia | I81: Dia | J81: Dia
B82: 1 | C82: 22.4 | D82: 19.8 | E82: 17.4 | F82: 15 | G82: 11.8 | H82: 9.8 | I82: 7.6 | J82: 5.6
B83: 2 | C83: 22.4 | D83: 19.8 | E83: 17.4 | F83: 15 | G83: 11.8 | H83: 9.8 | I83: 7.6 | J83: 5.6
B84: 3 | C84: 22.4 | D84: 19.8 | E84: 17.4 | F84: 15 | G84: 11.8 | H84: 9.8 | I84: 7.6 | J84: 5.6
B85: 4 | C85: 22.4 | D85: 19.8 | E85: 17.4 | F85: 15 | G85: 11.8 | H85: 9.8 | I85: 7.6 | J85: 5.6
B86: 5 | C86: 22.4 | D86: 19.8 | E86: 17.4 | F86: 15 | G86: 11.8 | H86: 9.8 | I86: 7.6 | J86: 5.6
B87: 6 | C87: 22.4 | D87: 19.8 | E87: 17.4 | F87: 15 | G87: 11.8 | H87: 9.8 | I87: 7.6 | J87: 5.6
B88: 7 | C88: 22.4 | D88: 19.8 | E88: 17.4 | F88: 15 | G88: 11.8 | H88: 9.8 | I88: 7.6 | J88: 5.6
B89: 8 | C89: 22.4 | D89: 19.8 | E89: 17.4 | F89: 15 | G89: 11.8 | H89: 9.8 | I89: 7.6 | J89: 5.6
B90: Total | C90: =SUM(C82:C89) -> 179.2 | D90: 158.4 | E90: 139.2 | F90: 120 | G90: 94.4 | H90: 78.4 | I90: 60.8 | J90: 44.8
B91: No. of Trees | C91: 8 | D91: 8 | E91: 8 | F91: 8 | G91: 8 | H91: 8 | I91: 8 | J91: 8
B92: Average Dia | C92: =C90/C91 -> 22.4 | D92: 19.8 | E92: 17.4 | F92: 15 | G92: 11.8 | H92: 9.8 | I92: 7.6 | J92: 5.6
B95: Mean Diameter Computation For Decade - 6
B96: Group No. | C96: Height of Section (in mts)
C97: 1.37 | D97: 4.24 | E97: =D97+3 -> 7.24 | F97: 10.24 | G97: 13.24 | H97: 16.24 | I97: 19.24 | J97: 22.24
C98: Dia | D98: Dia | E98: Dia | F98: Dia | G98: Dia | H98: Dia | I98: Dia | J98: Dia
B99: 1 | C99: 26 | D99: 23 | E99: 19.6 | F99: 16.2 | G99: 13 | H99: 11.2 | I99: 9 | J99: 7.8
B100: 2 | C100: 26 | D100: 23 | E100: 19.6 | F100: 16.2 | G100: 13 | H100: 11.2 | I100: 9 | J100: 7.8
B101: 3 | C101: 26 | D101: 23 | E101: 19.6 | F101: 16.2 | G101: 13 | H101: 11.2 | I101: 9 | J101: 7.8
B102: 4 | C102: 26 | D102: 23 | E102: 19.6 | F102: 16.2 | G102: 13 | H102: 11.2 | I102: 9 | J102: 7.8
B103: 5 | C103: 26 | D103: 23 | E103: 19.6 | F103: 16.2 | G103: 13 | H103: 11.2 | I103: 9 | J103: 7.8
B104: 6 | C104: 26 | D104: 23 | E104: 19.6 | F104: 16.2 | G104: 13 | H104: 11.2 | I104: 9 | J104: 7.8
B105: 7 | C105: 26 | D105: 23 | E105: 19.6 | F105: 16.2 | G105: 13 | H105: 11.2 | I105: 9 | J105: 7.8
B106: 8 | C106: 26 | D106: 23 | E106: 19.6 | F106: 16.2 | G106: 13 | H106: 11.2 | I106: 9 | J106: 7.8
B107: Total | C107: =SUM(C99:C106) -> 208 | D107: 184 | E107: 156.8 | F107: 129.6 | G107: 104 | H107: 89.6 | I107: 72 | J107: 62.4
B108: No. of Trees | C108: 8 | D108: 8 | E108: 8 | F108: 8 | G108: 8 | H108: 8 | I108: 8 | J108: 8
B109: Average Dia | C109: =C107/C108 -> 26 | D109: 23 | E109: 19.6 | F109: 16.2 | G109: 13 | H109: 11.2 | I109: 9 | J109: 7.8
B112: Mean Diameter Computation For Decade - 7
B113: Group No. | C113: Height of Section (in mts)
C114: 1.37 | D114: 4.24 | E114: =D114+3 -> 7.24 | F114: 10.24 | G114: 13.24 | H114: 16.24 | I114: 19.24 | J114: 22.24
C115: Dia | D115: Dia | E115: Dia | F115: Dia | G115: Dia | H115: Dia | I115: Dia | J115: Dia
B116: 1 | C116: 30 | D116: 27 | E116: 23.6 | F116: 20.6 | G116: 17.8 | H116: 15 | I116: 12 | J116: 9.4
B117: 2 | C117: 30 | D117: 27 | E117: 23.6 | F117: 20.6 | G117: 17.8 | H117: 15 | I117: 12 | J117: 9.4
B118: 3 | C118: 30 | D118: 27 | E118: 23.6 | F118: 20.6 | G118: 17.8 | H118: 15 | I118: 12 | J118: 9.4
B119: 4 | C119: 30 | D119: 27 | E119: 23.6 | F119: 20.6 | G119: 17.8 | H119: 15 | I119: 12 | J119: 9.4
B120: 5 | C120: 30 | D120: 27 | E120: 23.6 | F120: 20.6 | G120: 17.8 | H120: 15 | I120: 12 | J120: 9.4
B121: 6 | C121: 30 | D121: 27 | E121: 23.6 | F121: 20.6 | G121: 17.8 | H121: 15 | I121: 12 | J121: 9.4
B122: 7 | C122: 30 | D122: 27 | E122: 23.6 | F122: 20.6 | G122: 17.8 | H122: 15 | I122: 12 | J122: 9.4
B123: 8 | C123: 30 | D123: 27 | E123: 23.6 | F123: 20.6 | G123: 17.8 | H123: 15 | I123: 12 | J123: 9.4
B124: Total | C124: =SUM(C116:C123) -> 240 | D124: 216 | E124: 188.8 | F124: 164.8 | G124: 142.4 | H124: 120 | I124: 96 | J124: 75.2
B125: No. of Trees | C125: 8 | D125: 8 | E125: 8 | F125: 8 | G125: 8 | H125: 8 | I125: 8 | J125: 8
B126: Average Dia | C126: =C124/C125 -> 30 | D126: 27 | E126: 23.6 | F126: 20.6 | G126: 17.8 | H126: 15 | I126: 12 | J126: 9.4

Sheet DUB_Age
B4: No. of groups in the class | E4: =Height_Age!E4 -> 0
B5: Number of Decades | E5: 7
B6: Maximum No. of Sections | E6: 9
B8: Height | C8: 1.37 | D8: 4.24 | E8: 7.24 | F8: 10.24 | G8: 13.24 | H8: 16.24 | I8: 19.24 | J8: 22.24
B9: Decade | C9: S 1 | D9: S 2 | E9: S 3 | F9: S 4 | G9: S 5 | H9: S 6 | I9: S 7 | J9: S 8
B10: 10 | C10: 7 | D10: 5.8 | E10: 4.2 | F10: 3
B11: 20 | C11: 13.00480391 | D11: 11.18167297 | E11: 9.226881719 | F11: 6.982210182 | G11: 4.204431218
B12: 30 | C12: 17.32824332 | D12: 15.13844562 | E12: 12.69804323 | F12: 10.22049035 | G12: 7.825128893 | H12: 5.631300752 | I12: 3.758347832
B13: 40 | C13: 20.34255663 | D13: 17.85086393 | E13: 15.5412251 | F13: 13.38062513 | G13: 11.21441978 | H13: 8.887964783 | I13: 6.246615868 | J13: 3.135728775
B14: 50 | C14: 22.34754396 | D14: 19.95411855 | E14: 17.34860932 | F14: 14.71936156 | G14: 12.14980866 | H14: 9.723384005 | I14: 7.523520974 | J14: 5.633652955
B15: 60 | C15: 26.08800854 | D15: 22.8672457 | E15: 19.49865546 | F15: 16.27629755 | G15: 13.35055869 | H15: 10.87182559 | I15: 8.990484957 | J15: 7.85692351
B16: 70 | C16: 30.0435108 | D16: 26.8656667 | E16: 23.69906826 | F16: 20.6661856 | G16: 17.74174263 | H16: 14.90046329 | I16: 12.11707151 | J16: 9.366291219
B32: Height | C32: 1.37 | D32: 4.24 | E32: 7.24 | F32: 10.24 | G32: 13.24 | H32: 16.24 | I32: 19.24 | J32: 22.24
B33: Decade | C33: S 1 | D33: S 2 | E33: S 3 | F33: S 4 | G33: S 5 | H33: S 6 | I33: S 7 | J33: S 8
B34: 10 | C34: 6.975423524 | D34: 5.747331275 | E34: 4.109597026 | F34: 2.784414288
B35: 20 | C35: 13.10872178 | D35: 11.32732316 | E35: 9.386620058 | F35: 7.388733408 | G35: 4.001796057
B36: 30 | C36: 17.2335888 | D36: 15.0679172 | E36: 12.83307845 | F36: 10.46361666 | G36: 8.470621272 | H36: 5.633687801 | I36: 3.757374377
B37: 40 | C37: 20.17352552 | D37: 17.72985025 | E37: 15.21176029 | F37: 12.65460188 | G37: 10.65880188 | H37: 8.878416588 | I37: 6.250509689 | J37: 3.135728775
B38: 50 | C38: 22.75203284 | D38: 20.07385913 | E38: 17.28545362 | F38: 14.6072269 | G38: 11.97005971 | H38: 9.737706298 | I38: 7.517680241 | J38: 5.633652955
B39: 60 | C39: 25.7926117 | D39: 22.86068069 | E39: 19.81694654 | F39: 16.96702956 | G39: 13.8081166 | H39: 10.86227739 | I39: 8.994378779 | J39: 7.85692351
B40: 70 | C40: 30.118763 | D40: 26.85105177 | E40: 23.56902711 | F40: 20.37954769 | G40: 17.57669436 | H40: 14.90285034 | I40: 12.11609805 | J40: 9.366291219
B56: Height | C56: 1.37 | E56: 3 | F56: 6 | G56: 9 | H56: 12 | I56: 15 | J56: 18
B57: Decade | C57: S 1 | D57: S 2 | E57: S 3 | F57: S 4 | G57: S 5 | H57: S 6 | I57: S 7 | J57: S 8
B58: 10 | C58: 6.975423524 | D58: 5.747331275 | E58: 4.109597026 | F58: 2.784414288
B59: 20 | C59: 11.75839138 | D59: 11.80729766 | E59: 10.59686251 | F59: 6.962665333 | G59: 4.087977586
B60: 30 | C60: 15.12577753 | D60: 16.06960388 | E60: 13.79459084 | F60: 10.98439212 | G60: 8.088700591 | H60: 5.557209103 | I60: 3.839610513
B61: 40 | C61: 17.60622031 | D61: 19.14513162 | E61: 15.94298198 | F61: 13.24863545 | G61: 10.84903736 | H61: 8.531133055 | I61: 6.081867891 | J61: 3.288187205
B62: 50 | C62: 20.02657343 | D62: 21.51103903 | E62: 18.26086718 | F62: 15.08201442 | G62: 12.10965977 | H62: 9.478982253 | I62: 7.325160896 | J62: 5.783374722
B63: 60 | C63: 22.89065756 | D63: 24.33535357 | E63: 21.0208666 | F63: 17.37182973 | G63: 13.81779453 | H63: 10.78831258 | I63: 8.712935456 | J63: 8.021214744
B64: 70 | C64: 26.79966522 | D64: 28.6119976 | E64: 24.70636378 | F64: 21.04906046 | G64: 17.67218529 | H64: 14.60783593 | I64: 11.88811002 | J64: 9.545105231

Sheet DBH(OB)_Age
B4: No. of groups in the class | E4: =Height_Age!E4 -> 0
B5: Number of Decades | E5: 7
B6: Maximum No. of Sections | E6: 9
B9: Group No. | C9: 1 | E9: 2 | G9: 3 | I9: 4 | K9: 5 | M9: 6 | O9: 7 | Q9: 8 | S9: Average DOB | T9: Age
B10: DUB | C10: 2BT | D10: DOB | E10: 2BT | F10: DOB | G10: 2BT | H10: DOB | I10: 2BT | J10: DOB | K10: 2BT | L10: DOB | M10: 2BT | N10: DOB | O10: 2BT | P10: DOB | Q10: 2BT | R10: DOB
B11: 5 | C11: -4.895067994 | D11: 0.1049320061 | E11: -4.895067994 | F11: 0.1049320061 | G11: -4.895067994 | H11: 0.1049320061 | I11: -4.895067994 | J11: 0.1049320061 | K11: -4.895067994 | L11: 0.1049320061 | M11: -4.895067994 | N11: 0.1049320061 | O11: -4.895067994 | P11: 0.1049320061 | Q11: -4.895067994 | R11: 0.1049320061 | S11: 5 | T11: 9.905441312
B12: 10 | C12: 0.5955788187 | D12: 10.59557882 | E12: 0.5955788187 | F12: 10.59557882 | G12: 0.5955788187 | H12: 10.59557882 | I12: 0.5955788187 | J12: 10.59557882 | K12: 0.5955788187 | L12: 10.59557882 | M12: 0.5955788187 | N12: 10.59557882 | O12: 0.5955788187 | P12: 10.59557882 | Q12: 0.5955788187 | R12: 10.59557882 | S12: 10.59557915 | T12: 14.77667335
B13: 15 | C13: 2.960812924 | D13: 17.96081292 | E13: 2.960812924 | F13: 17.96081292 | G13: 2.960812924 | H13: 17.96081292 | I13: 2.960812924 | J13: 17.96081292 | K13: 2.960812924 | L13: 17.96081292 | M13: 2.960812924 | N13: 17.96081292 | O13: 2.960812924 | P13: 17.96081292 | Q13: 2.960812924 | R13: 17.96081292 | S13: 17.96081352 | T13: 30.21183284
B14: 20 | C14: 3.208186061 | D14: 23.20818606 | E14: 3.208186061 | F14: 23.20818606 | G14: 3.208186061 | H14: 23.20818606 | I14: 3.208186061 | J14: 23.20818606 | K14: 3.208186061 | L14: 23.20818606 | M14: 3.208186061 | N14: 23.20818606 | O14: 3.208186061 | P14: 23.20818606 | Q14: 3.208186061 | R14: 23.20818606 | S14: 23.2081871 | T14: 49.54160026
B15: 25 | C15: 2.345249971 | D15: 27.34524997 | E15: 2.345249971 | F15: 27.34524997 | G15: 2.345249971 | H15: 27.34524997 | I15: 2.345249971 | J15: 27.34524997 | K15: 2.345249971 | L15: 27.34524997 | M15: 2.345249971 | N15: 27.34524997 | O15: 2.345249971 | P15: 27.34524997 | Q15: 2.345249971 | R15: 27.34524997 | S15: 27.34524918 | T15: 66.09665614
B16: 30 | C16: 1.379556393 | D16: 31.37955639 | E16: 1.379556393 | F16: 31.37955639 | G16: 1.379556393 | H16: 31.37955639 | I16: 1.379556393 | J16: 31.37955639 | K16: 1.379556393 | L16: 31.37955639 | M16: 1.379556393 | N16: 31.37955639 | O16: 1.379556393 | P16: 31.37955639 | Q16: 1.379556393 | R16: 31.37955639 | S16: 31.37955856 | T16: 73.20768096
B17: 35 | C17: 1.318657067 | D17: 36.31865707 | E17: 1.318657067 | F17: 36.31865707 | G17: 1.318657067 | H17: 36.31865707 | I17: 1.318657067 | J17: 36.31865707 | K17: 1.318657067 | L17: 36.31865707 | M17: 1.318657067 | N17: 36.31865707 | O17: 1.318657067 | P17: 36.31865707 | Q17: 1.318657067 | R17: 36.31865707 | S17: 36.31866074 | T17: 64.20535524
B19: Average DOB | C19: 5 | D19: 5 | E19: 10.59557915 | F19: 17.96081352 | G19: 23.2081871 | H19: 27.34524918 | I19: 31.37955856 | J19: 36.31866074 | K19: 36.31866074
B20: Age | C20: 5.034209272 | D20: 9.905441312 | E20: 14.77667335 | F20: 30.21183284 | G20: 49.54160026 | H20: 66.09665614 | I20: 73.20768096 | J20: 64.20535524 | K20: 73.20768096

Sheet Volume_Age
F2: Volume Calculations
B4: No. of groups in the class | D4: =Height_Age!E4 -> 0
B5: Number of Decades | D5: 7
B6: Maximum No. of Sections | D6: 9
B8: Height of Sections | C8: 1.37 | D8: 4.24 | E8: 7.24 | F8: 10.24 | G8: 13.24 | H8: 16.24 | I8: 19.24 | J8: 22.24 | K8: Cone | L8: Total | O8: Age v/s Volume
B9: Decade | C9: 1
B10: Length of Section (m) | C10: 2.74 | D10: 3 | E10: 3 | F10: 3 | K10: 1.5 | O10: Scatter | P10: Age (yrs) | Q10: 10 | R10: 20 | S10: 30 | T10: 40 | U10: 50 | V10: 60 | W10: 70
B11: Diameter (cm) | C11: 6.975423524 | D11: 5.747331275 | E11: 4.109597026 | F11: 2.784414288 | K11: =F11+((F11-E11)/2) -> 2.121822919 | P11: Volume (m3) | Q11: 0.02424640977 | R11: 0.104738293 | S11: 0.2099445057 | T11: 0.3107267181 | U11: 0.4048967737 | V11: 0.5355027672 | W11: 0.78243234
B12: Basal Area (m2) | C12: =22*C11*C11/(28*10000) -> 0.003823013333 | D12: =22*D11*D11/(28*10000) -> 0.002595357033 | E12: =22*E11*E11/(28*10000) -> 0.001326976178 | F12: =22*F11*F11/(28*10000) -> 0.0006091613728 | K12: =22*K11*K11/(28*10000) -> 0.000353738982 | O12: Trendline | P12: Age (yrs) | Q12: 0 | R12: 10 | S12: 20 | T12: 30 | U12: 40 | V12: 50 | W12: 60 | X12: 70 | Y12: 80
B13: Volume (m3) | C13: =C12*C10 -> 0.01047505653 | D13: =D12*D10 -> 0.007786071098 | E13: =E12*E10 -> 0.003980928533 | F13: =F12*F10 -> 0.001827484118 | K13: =K12*K10/3 -> 0.000176869491 | L13: =SUM(C13:K13) -> 0.02424640977 | P13: Volume (m3) | Q13: 0.02424640977 | R13: 0.02424640977 | S13: 0.104738293 | T13: 0.2099445057 | U13: 0.3107267181 | V13: 0.4048967737 | W13: 0.5355027672 | X13: 0.78243234 | Y13: 0.78243234
B14: Decade | C14: 2
B15: Length of Section (m) | C15: 2.74 | D15: 3 | E15: 3 | F15: 3 | G15: 3 | K15: 1.5
B16: Diameter (cm) | C16: 11.75839138 | D16: 11.80729766 | E16: 10.59686251 | F16: 6.962665333 | G16: 4.087977586 | K16: =G16+((G16-F16)/2) -> 2.650633712
B17: Basal Area (m2) | C17: =22*C16*C16/(28*10000) -> 0.01086326747 | D17: =22*D16*D16/(28*10000) -> 0.01095382184 | E17: =22*E16*E16/(28*10000) -> 0.008823060318 | F17: =22*F16*F16/(28*10000) -> 0.003809041385 | G17: =22*G16*G16/(28*10000) -> 0.001313051201 | K17: =22*K16*K16/(28*10000) -> 0.0005520317844
B18: Volume (m3) | C18: =C17*C15 -> 0.02976535288 | D18: =D17*D15 -> 0.03286146553 | E18: =E17*E15 -> 0.02646918095 | F18: =F17*F15 -> 0.01142712416 | G18: =G17*G15 -> 0.003939153603 | K18: =K17*K15/3 -> 0.0002760158922 | L18: =SUM(C18:K18) -> 0.104738293
B19: Decade | C19: 3
B20: Length of Section (m) | C20: 2.74 | D20: 3 | E20: 3 | F20: 3 | G20: 3 | H20: 3 | I20: 3 | K20: 1.5
B21: Diameter (cm) | C21: 15.12577753 | D21: 16.06960388 | E21: 13.79459084 | F21: 10.98439212 | G21: 8.088700591 | H21: 5.557209103 | I21: 3.839610513 | K21: =I21+((I21-H21)/2) -> 2.980811218
B22: Basal Area (m2) | C22: =22*C21*C21/(28*10000) -> 0.01797629003 | D22: 0.02028967041 | E22: 0.014951415 | F22: 0.009480182664 | G22: 0.005140698927 | H22: 0.002426487879 | I22: 0.001158347842 | K22: =22*K21*K21/(28*10000) -> 0.0006981256479
B23: Volume (m3) | C23: =C22*C20 -> 0.04925503469 | D23: 0.06086901122 | E23: 0.04485424499 | F23: 0.02844054799 | G23: 0.01542209678 | H23: 0.007279463638 | I23: 0.003475043525 | K23: =K22*K20/3 -> 0.000349062824 | L23: =SUM(C23:K23) -> 0.2099445057
B24: Decade | C24: 4
B25: Length of Section (m) | C25: 2.74 | D25: 3 | E25: 3 | F25: 3 | G25: 3 | H25: 3 | I25: 3 | J25: 3 | K25: 1.5
B26: Diameter (cm) | C26: 17.60622031 | D26: 19.14513162 | E26: 15.94298198 | F26: 13.24863545 | G26: 10.84903736 | H26: 8.531133055 | I26: 6.081867891 | J26: 3.288187205 | K26: =J26+((J26-I26)/2) -> 1.891346863
B27: Basal Area (m2) | C27: =22*C26*C26/(28*10000) -> 0.02435549235 | D27: 0.02879926222 | E27: 0.01997118156 | F27: 0.01379135538 | G27: 0.009247983763 | H27: 0.005718446738 | I27: 0.002906287767 | J27: 0.0008495280434 | K27: 0.0002810651608
B28: Volume (m3) | C28: =C27*C25 -> 0.06673404904 | D28: 0.08639778667 | E28: 0.05991354469 | F28: 0.04137406613 | G28: 0.02774395129 | H28: 0.01715534021 | I28: 0.008718863302 | J28: 0.00254858413 | K28: =K27*K25/3 -> 0.0001405325804 | L28: =SUM(C28:K28) -> 0.3107267181
B29: Decade | C29: 5
B30: Length of Section (m) | C30: 2.74 | D30: 3 | E30: 3 | F30: 3 | G30: 3 | H30: 3 | I30: 3 | J30: 3 | K30: 1.5
B31: Diameter (cm) | C31: 20.02657343 | D31: 21.51103903 | E31: 18.26086718 | F31: 15.08201442 | G31: 12.10965977 | H31: 9.478982253 | I31: 7.325160896 | J31: 5.783374722 | K31: =J31+((J31-I31)/2) -> 5.012481634
B32: Basal Area (m2) | C32: =22*C31*C31/(28*10000) -> 0.0315121434 | D32: 0.03635694858 | E32: 0.02620037123 | F32: 0.01787241963 | G32: 0.01152201755 | H32: 0.007059729644 | I32: 0.004215984312 | J32: 0.002628011821 | K32: 0.001974104953
B33: Volume (m3) | C33: =C32*C30 -> 0.08634327293 | D33: 0.1090708457 | E33: 0.07860111368 | F33: 0.05361725889 | G33: 0.03456605264 | H33: 0.02117918893 | I33: 0.01264795294 | J33: 0.007884035462 | K33: =K32*K30/3 -> 0.0009870524766 | L33: =SUM(C33:K33) -> 0.4048967737
B34: Decade | C34: 6
B35: Length of Section (m) | C35: 2.74 | D35: 3 | E35: 3 | F35: 3 | G35: 3 | H35: 3 | I35: 3 | J35: 3 | K35: 1.5
B36: Diameter (cm) | C36: 22.89065756 | D36: 24.33535357 | E36: 21.0208666 | F36: 17.37182973 | G36: 13.81779453 | H36: 10.78831258 | I36: 8.712935456 | J36: 8.021214744 | K36: =J36+((J36-I36)/2) -> 7.675354387
B37: Basal Area (m2) | C37: =22*C36*C36/(28*10000) -> 0.04117003028 | D37: 0.04653074118 | E37: 0.03471889399 | F37: 0.02371132249 | G37: 0.01500175644 | H37: 0.009144746935 | I37: 0.005964769192 | J37: 0.005055276754 | K37: 0.004628726533
B38: Volume (m3) | C38: =C37*C35 -> 0.112805883 | D38: 0.1395922235 | E38: 0.104156682 | F38: 0.07113396748 | G38: 0.04500526932 | H38: 0.0274342408 | I38: 0.01789430758 | J38: 0.01516583026 | K38: =K37*K35/3 -> 0.002314363267 | L38: =SUM(C38:K38) -> 0.5355027672
B39: Decade | C39: 7
B40: Length of Section (m) | C40: 2.74 | D40: 3 | E40: 3 | F40: 3 | G40: 3 | H40: 3 | I40: 3 | J40: 3 | K40: 4.260000229
B41: Diameter (cm) | C41: 26.79966522 | D41: 28.6119976 | E41: 24.70636378 | F41: 21.04906046 | G41: 17.67218529 | H41: 14.60783593 | I41: 11.88811002 | J41: 9.545105231 | K41: =J41+((J41-I41)/2) -> 8.373602834
B42: Basal Area (m2) | C42: =22*C41*C41/(28*10000) -> 0.05643173296 | D42: 0.06432221768 | E42: 0.0479603466 | F42: 0.03481208863 | G42: 0.02453833902 | H42: 0.0167662684 | I42: 0.01110427685 | J42: 0.007158566947 | K42: 0.005509210491
B43: Volume (m3) | C43: =C42*C40 -> 0.1546229483 | D43: 0.192966653 | E43: 0.1438810398 | F43: 0.1044362659 | G43: 0.07361501706 | H43: 0.0502988052 | I43: 0.03331283056 | J43: 0.02147570084 | K43: =K42*K40/3 -> 0.007823079317 | L43: =SUM(C43:K43) -> 0.78243234
